fUST/lending_fUST_20251119
["ID","MTS","AMOUNT","RATE_DAILY","PERIOD"]
[394400056,1763532634480,-151.0,0.00024658,7]
[394400057,1763532634489,-151.0,0.00024658,7]
[394400058,1763532634502,-151.0,0.00024658,7]
[394400059,1763532634511,-151.0,0.00024658,7]
[394400060,1763532634520,-151.0,0.00024658,7]
[394400061,1763532634530,-151.0,0.00024658,7]
[394400062,1763532634538,-151.0,0.00024658,7]
[394400063,1763532634547,-151.0,0.00024658,7]
[394400064,1763532634556,-151.0,0.00024658,7]
[394400065,1763532634565,-169.871767,0.00024658,7]
[394400066,1763532634582,-151.0,0.00024658,7]
[394400067,1763532634593,-151.0,0.00024658,7]
[394400068,1763532634603,-151.0,0.00024658,7]
[394400069,1763532634613,-151.0,0.00024658,7]
[394400070,1763532634622,-151.0,0.00024658,7]
[394400071,1763532634632,-151.0,0.00024658,7]
[394400072,1763532634644,-151.0,0.00024658,7]
[394400073,1763532634654,-151.0,0.00024658,7]
[394400074,1763532634664,-284.64552,0.00024658,7]
[394400075,1763532634674,-151.0,0.00024658,7]
[394400076,1763532634683,-151.0,0.00024658,7]
[394400077,1763532634693,-151.0,0.00024658,7]
[394400078,1763532634703,-151.0,0.00024658,7]
[394400079,1763532634712,-151.0,0.00024658,7]
[394400080,1763532634721,-172.757734,0.00024658,7]
[394400081,1763532634731,-151.0,0.00024658,7]
[394400082,1763532634740,-151.0,0.00024658,7]
[394400083,1763532634753,-151.0,0.00024658,7]
[394400084,1763532634763,-151.0,0.00024658,7]
[394400085,1763532634773,-151.0,0.00024658,7]
[394400086,1763532634783,-151.0,0.00024658,7]
[394400087,1763532634793,-151.0,0.00024658,7]
[394400088,1763532634802,-500.0,0.00024658,2]
[394400089,1763532634811,-1000.0,0.0002467,20]
[394400090,1763532634821,-244.0,0.0002467,20]
[394400091,1763532634830,-500.0,0.00024685,2]
[394400092,1763532634839,-400.87691731,0.000247,7]
[394400093,1763532634850,-500.0,0.00024713,2]
[394400094,1763532634861,-1000.0,0.00024721,2]
[394400095,1763532634870,-500.0,0.0002474,2]
[394400096,1763532634879,-500.0,0.00024768,2]
[394400097,1763532634889,-163.19785608,0.00024773,2]
[394400098,1763532634899,-150.0,0.00024773,2]
[394400099,1763532634908,-500.0,0.00024795,2]
[394400100,1763532634917,-151.0,0.000248,7]
[394400101,1763532634926,-206.177411,0.000248,7]
[394400102,1763532634936,-206.177411,0.000248,7]
[394400103,1763532634945,-151.0,0.000248,7]
[394400104,1763532634955,-206.177411,0.000248,7]
[394400105,1763532634964,-151.0,0.000248,7]
[394400106,1763532634973,-170.615422,0.000248,7]
[394400107,1763532634982,-206.177411,0.000248,7]
[394400108,1763532634991,-151.0,0.000248,7]
[394400109,1763532635005,-151.0,0.000248,7]
[394400110,1763532635015,-181.568134,0.000248,7]
[394400111,1763532635024,-1054.590418,0.000248,7]
[394400112,1763532635034,-535.742615,0.000248,7]
[394400113,1763532635043,-1054.590418,0.000248,7]
[394400114,1763532635053,-535.742615,0.000248,7]
[394400115,1763532635062,-1054.590418,0.000248,7]
[394400116,1763532635082,-535.742615,0.000248,7]
[394400117,1763532635092,-1054.590418,0.000248,7]
[394400118,1763532635102,-535.742615,0.000248,7]
[394400119,1763532635112,-1012.948085,0.000248,7]
[394400120,1763532635122,-122800.119365,0.000248,2]
[394400121,1763532635131,-151.0,0.0002482,3]
[394400122,1763532635141,-151.0,0.0002482,3]
[394400123,1763532635151,-151.0,0.0002482,3]
[394400124,1763532635161,-202.87336898,0.0002482,3]
[394400125,1763532635171,-151.0,0.0002482,3]
[394400126,1763532635182,-151.0,0.0002482,3]
[394400127,1763532635191,-151.0,0.0002482,3]
[394400128,1763532635201,-151.0,0.0002482,3]
[394400129,1763532635211,-333.0,0.0002482,3]
[394400130,1763532635220,-151.0,0.0002482,3]
[394400131,1763532635229,-151.0,0.0002482,3]
[394400132,1763532635238,-333.0,0.0002482,3]
[394400133,1763532635251,-151.0,0.0002482,3]
[394400134,1763532635260,-333.0,0.0002482,3]
[394400135,1763532635269,-151.0,0.0002482,3]
[394400136,1763532635279,-333.0,0.0002482,3]
[394400137,1763532635288,-151.0,0.0002482,3]
[394400138,1763532635297,-333.0,0.0002482,3]
[394400139,1763532635306,-151.0,0.0002482,3]
[394400140,1763532635316,-333.0,0.0002482,3]
[394400141,1763532635325,-151.0,0.0002482,3]
[394400142,1763532635334,-333.0,0.0002482,3]
[394400143,1763532635343,-151.0,0.0002482,3]
[394400144,1763532635352,-151.0,0.0002482,3]
[394400145,1763532635362,-279.29948087,0.0002482,3]
[394400146,1763532635371,-151.0,0.0002482,3]
[394400147,1763532635381,-174.0,0.0002482,3]
[394400148,1763532635390,-151.0,0.0002482,3]
[394400149,1763532635400,-174.94378678,0.0002482,3]
[394400150,1763532635409,-151.0,0.0002482,3]
[394400151,1763532635419,-151.0,0.0002482,3]
[394400152,1763532635429,-151.0,0.0002482,3]
[394400153,1763532635439,-151.0,0.0002482,3]
[394400154,1763532635449,-151.0,0.0002482,3]
[394400155,1763532635460,-151.0,0.0002482,3]
[394400156,1763532635470,-151.0,0.0002482,3]
[394400157,1763532635479,-151.0,0.0002482,3]
[394400158,1763532635489,-151.0,0.0002482,3]
[394400159,1763532635499,-151.0,0.0002482,3]
[394400160,1763532635509,-151.0,0.0002482,3]
[394400161,1763532635518,-151.0,0.0002482,3]
[394400162,1763532635527,-500.0,0.00024822,2]
[394400163,1763532635538,-1012.948085,0.00024835,2]
[394400164,1763532635547,-1613.0,0.00024838,2]
[394400165,1763532635556,-500.0,0.0002485,2]
[394400166,1763532635566,-500.0,0.00024877,2]
[394400167,1763532635576,-81866.7462435,0.0002489,2]
[394400168,1763532635585,-151.0,0.000249,7]
[394400169,1763532635595,-151.0,0.000249,7]
[394400170,1763532635604,-151.0,0.000249,7]
[394400171,1763532635613,-151.0,0.000249,7]
[394400172,1763532635623,-153.270878,0.000249,7]
[394400173,1763532635632,-151.0,0.000249,7]
[394400174,1763532635641,-221.744624,0.000249,7]
[394400175,1763532635650,-151.0,0.000249,7]
[394400176,1763532635659,-151.0,0.000249,7]
[394400177,1763532635668,-164.02767,0.000249,7]
[394400178,1763532635678,-151.0,0.000249,7]
[394400179,1763532635687,-151.0,0.000249,7]
[394400180,1763532635697,-168.756887,0.000249,7]
[394400181,1763532635706,-168.756887,0.000249,7]
[394400182,1763532635715,-168.756887,0.000249,7]
[394400183,1763532635724,-168.756887,0.000249,7]
[394400184,1763532635734,-151.0,0.000249,7]
[394400185,1763532635743,-151.0,0.000249,7]
[394400186,1763532635756,-151.0,0.000249,7]
[394400187,1763532635766,-151.0,0.000249,7]
[394400188,1763532635775,-180.933679,0.000249,7]
[394400189,1763532635785,-151.0,0.000249,7]
[394400190,1763532635794,-151.0,0.000249,7]
[394400191,1763532635803,-151.0,0.000249,7]
[394400192,1763532635812,-246.833788,0.000249,7]
[394400193,1763532635821,-151.0,0.000249,7]
[394400194,1763532635831,-151.0,0.000249,7]
[394400195,1763532635840,-151.0,0.000249,7]
[394400196,1763532635849,-151.0,0.000249,7]
[394400197,1763532635859,-285.435934,0.000249,7]
[394400198,1763532635868,-285.435934,0.000249,7]
[394400199,1763532635878,-285.435934,0.000249,7]
[394400200,1763532635887,-285.435934,0.000249,7]
[394400201,1763532635897,-152.250608,0.000249,7]
[394400202,1763532635906,-151.0,0.000249,7]
[394400203,1763532635915,-151.0,0.000249,7]
[394400204,1763532635924,-152.895835,0.000249,7]
[394400205,1763532635934,-151.0,0.000249,7]
[394400206,1763532635944,-151.0,0.000249,7]
[394400207,1763532635954,-151.0,0.000249,7]
[394400208,1763532635964,-285.795859,0.000249,7]
[394400209,1763532635973,-151.0,0.000249,7]
[394400210,1763532635982,-152.775782,0.000249,7]
[394400211,1763532635991,-151.0,0.000249,7]
[394400212,1763532636002,-151.0,0.000249,7]
[394400213,1763532636011,-151.0,0.000249,7]
[394400214,1763532636021,-151.0,0.000249,7]
[394400215,1763532636030,-151.0,0.000249,7]
[394400216,1763532636039,-151.0,0.000249,7]
[394400217,1763532636050,-151.0,0.000249,7]
[394400218,1763532636059,-206.177411,0.000249,7]
[394400219,1763532636069,-206.177411,0.000249,7]
[394400220,1763532636078,-151.0,0.000249,7]
[394400221,1763532636088,-206.177411,0.000249,7]
[394400222,1763532636097,-151.0,0.000249,7]
[394400223,1763532636106,-206.177411,0.000249,7]
[394400224,1763532636115,-151.0,0.000249,7]
[394400225,1763532636124,-151.0,0.000249,7]
[394400226,1763532636133,-1054.590418,0.000249,7]
[394400227,1763532636142,-535.742615,0.000249,7]
[394400228,1763532636151,-1054.590418,0.000249,7]
[394400229,1763532636160,-535.742615,0.000249,7]
[394400230,1763532636171,-1054.590418,0.000249,7]
[394400231,1763532636181,-535.742615,0.000249,7]
[394400232,1763532636190,-1054.590418,0.000249,7]
[394400233,1763532636199,-535.742615,0.000249,7]
[394400234,1763532636209,-151.0,0.000249,7]
[394400235,1763532636218,-151.0,0.000249,7]
[394400236,1763532636226,-151.0,0.000249,7]
[394400237,1763532636236,-151.0,0.000249,7]
[394400238,1763532636251,-151.0,0.000249,7]
[394400239,1763532636260,-151.0,0.000249,7]
[394400240,1763532636269,-151.0,0.000249,7]
[394400241,1763532636279,-151.0,0.000249,7]
[394400242,1763532636288,-151.0,0.000249,7]
[394400243,1763532636297,-151.0,0.000249,7]
[394400244,1763532636307,-151.0,0.000249,7]
[394400245,1763532636316,-151.0,0.000249,7]
[394400246,1763532636326,-400.87691731,0.000249,7]
[394400247,1763532636466,-151.0,0.000249,7]
[394400248,1763532636475,-151.0,0.000249,7]
[394400249,1763532636485,-151.0,0.000249,7]
[394400250,1763532636494,-151.0,0.000249,7]
[394400251,1763532636507,-151.0,0.000249,7]
[394400252,1763532636517,-151.0,0.000249,7]
[394400253,1763532636526,-151.0,0.000249,7]
[394400254,1763532636535,-151.0,0.000249,7]
[394400255,1763532636549,-151.0,0.000249,7]
[394400256,1763532636559,-151.0,0.000249,7]
[394400257,1763532636569,-151.0,0.000249,7]
[394400258,1763532636578,-151.0,0.000249,7]
[394400259,1763532636588,-151.0,0.000249,7]
[394400260,1763532636598,-151.0,0.000249,7]
[394400261,1763532636607,-151.0,0.000249,7]
[394400262,1763532636616,-151.0,0.000249,7]
[394400263,1763532636625,-151.0,0.000249,7]
[394400264,1763532636634,-151.0,0.000249,7]
[394400265,1763532636643,-794470.14386,0.000249,2]
[394400266,1763532636653,-151.0,0.000249,7]
[394400267,1763532636663,-151.0,0.000249,7]
[394400268,1763532636672,-457.345415,0.000249,7]
[394400269,1763532636682,-649.944084,0.000249,7]
[394400270,1763532636691,-577.822956,0.000249,7]
[394400271,1763532636700,-151.0,0.000249,7]
[394400272,1763532636709,-649.944084,0.000249,7]
[394400273,1763532636719,-457.345415,0.000249,7]
[394400274,1763532636729,-577.822956,0.000249,7]
[394400275,1763532636738,-163.786282,0.000249,7]
[394400276,1763532636748,-816.479289,0.000249,7]
[394400277,1763532636757,-649.944084,0.000249,7]
[394400278,1763532636766,-457.345415,0.000249,7]
[394400279,1763532636776,-577.822956,0.000249,7]
[394400280,1763532636785,-816.479289,0.000249,7]
[394400281,1763532636795,-649.944084,0.000249,7]
[394400282,1763532636804,-577.822956,0.000249,7]
[394400283,1763532636813,-457.345415,0.000249,7]
[394400284,1763532636824,-816.479289,0.000249,7]
[394400285,1763532636834,-816.479289,0.000249,7]
[394400286,1763532636844,-151.0,0.000249,7]
[394400287,1763532636854,-151.0,0.000249,7]
[394400288,1763532636865,-151.0,0.000249,7]
[394400289,1763532636874,-151.0,0.000249,7]
[394400290,1763532636883,-151.0,0.000249,7]
[394400291,1763532636892,-200.515922,0.000249,7]
[394400292,1763532636902,-151.0,0.000249,7]
[394400293,1763532636911,-12906.63788337,0.000249,2]
[394400294,1763532636921,-151.0,0.000249,7]
[394400295,1763532636931,-151.0,0.000249,7]
[394400296,1763532636940,-173.274677,0.000249,7]
[394400297,1763532636950,-199.089647,0.000249,7]
[394400298,1763532636959,-500.0,0.00024905,2]
[394400299,1763532636968,-1060.0,0.00024915,2]
[394400300,1763532636977,-500.0,0.00024932,2]
[394400301,1763532636986,-500.0,0.00024959,2]
[394400302,1763532637000,-500.0,0.00024987,2]
[394400303,1763532637009,-600.0,0.00024995,2]
[394400304,1763532637018,-1039.78835999,0.00025,5]
[394400305,1763532637028,-94475.29518635,0.00025,5]
[394400306,1763532637038,-232.73793427,0.00025,2]
[394400307,1763532637048,-1081.68503399,0.00025,2]
[394400308,1763532637058,-1988.07784397,0.00025,2]
[394400309,1763532637067,-2665.28982723,0.00025,2]
[394400310,1763532637077,-10364.0,0.00025,2]
[394400311,1763532637087,-150.0,0.00025,2]
[394400312,1763532637097,-668.60732667,0.00025,2]
[394400313,1763532637107,-300.0,0.00025,30]
[394400314,1763532637116,-600.0,0.00025,2]
[394400315,1763532637126,-754.88056033,0.00025,2]
[394400356,1763532637657,-500.0,0.00018534,2]
[394400357,1763532637667,-350.2815828,0.00018534,2]
[394400359,1763532637676,-500.0,0.00018534,2]
[394400361,1763532637685,-500.0,0.00018534,2]
[394400363,1763532637694,-8988.7,0.00021653,10]
[394400365,1763532637703,-199.089647,0.000249,7]
[394400369,1763532637711,-151.0,0.000249,7]
[394400372,1763532637720,-151.0,0.000249,7]
[394400375,1763532637729,-199.089647,0.000249,7]
[394400378,1763532637738,-151.0,0.000249,7]
[394400381,1763532637747,-199.089647,0.000249,7]
[394400383,1763532637756,-151.0,0.000249,7]
[394400385,1763532637765,-131379.6938542,0.00025,2]
[394400387,1763532637774,-501.29212503,0.00025,2]
[394400389,1763532637784,-347.41970597,0.00025,2]
[394400391,1763532637792,-5787.87,0.00025,14]
[394400393,1763532637801,-151.0,0.00025,7]
[394400395,1763532637810,-151.0,0.00025,3]
[394400397,1763532637819,-151.0,0.00025,3]
[394400398,1763532637828,-151.0,0.00025,3]
[394400400,1763532637837,-151.0,0.00025,3]
[394400403,1763532637847,-159.28056,0.00025,3]
[394400404,1763532637856,-151.0,0.00025,7]
[394400406,1763532637865,-151.0,0.00025,7]
[394400408,1763532637874,-151.0,0.00025,7]
[394400410,1763532637883,-151.0,0.00025,7]
[394400412,1763532637893,-151.0,0.00025,7]
[394400414,1763532637903,-179.171731,0.00025,7]
[394400417,1763532637920,-151.0,0.00025,7]
[394400419,1763532637932,-206.177411,0.00025,7]
[394400421,1763532637941,-206.177411,0.00025,7]
[394400423,1763532637950,-151.0,0.00025,7]
[394400425,1763532637960,-206.177411,0.00025,7]
[394400428,1763532637969,-151.0,0.00025,7]
[394400430,1763532637979,-206.177411,0.00025,7]
[394400432,1763532637989,-151.0,0.00025,7]
[394400434,1763532637999,-151.0,0.00025,7]
[394400436,1763532638008,-1054.590418,0.00025,7]
[394400438,1763532638017,-535.742615,0.00025,7]
[394400439,1763532638028,-1054.590418,0.00025,7]
[394400441,1763532638038,-535.742615,0.00025,7]
[394400443,1763532638047,-1054.590418,0.00025,7]
[394400445,1763532638057,-535.742615,0.00025,7]
[394400447,1763532638067,-1054.590418,0.00025,7]
[394400449,1763532638077,-535.742615,0.00025,7]
[394400451,1763532638087,-156.125717,0.00025,7]
[394400453,1763532638096,-151.0,0.00025,7]
[394400455,1763532638106,-151.0,0.00025,7]
[394400457,1763532638115,-151.0,0.00025,7]
[394400459,1763532638124,-279.604312,0.00025,7]
[394400461,1763532638134,-151.0,0.00025,7]
[394400463,1763532638143,-151.0,0.00025,7]
[394400465,1763532638152,-151.0,0.00025,7]
[394400467,1763532638161,-151.0,0.00025,7]
[394400469,1763532638172,-151.0,0.00025,7]
[394400471,1763532638183,-151.0,0.00025,7]
[394400473,1763532638193,-151.0,0.00025,7]
[394400475,1763532638203,-151.0,0.00025,7]
[394400477,1763532638212,-151.0,0.00025,7]
[394400479,1763532638223,-207.112456,0.00025,2]
[394400481,1763532638232,-500.0,0.00025014,2]
[394400483,1763532638242,-500.0,0.00025042,2]
[394400485,1763532638252,-500.0,0.00025069,2]
[394400487,1763532638261,-500.0,0.00025096,2]
[394400489,1763532638270,-500.0,0.00025124,2]
[394400491,1763532638279,-500.0,0.00025151,2]
[394400493,1763532638288,-1500.0,0.00025168,2]
[394400495,1763532638297,-1500.0,0.00025168,2]
[394400497,1763532638307,-1500.0,0.00025168,2]
[394400499,1763532638316,-427.81083827,0.00025179,2]
[394400501,1763532638326,-243.268731,0.00025205,7]
[394400503,1763532638336,-151.0,0.00025205,7]
[394400505,1763532638345,-525.37,0.00025205,2]
[394400507,1763532638354,-250.0,0.00025205,2]
[394400509,1763532638364,-250.0,0.00025205,2]
[394400511,1763532638375,-450.0,0.00025205,2]
[394400513,1763532638384,-151.0,0.00025268,7]
[394400515,1763532638394,-151.0,0.00025268,7]
[394400517,1763532638403,-151.0,0.00025268,7]
[394400519,1763532638412,-151.0,0.00025268,7]
[394400520,1763532638422,-151.0,0.00025268,7]
[394400522,1763532638431,-151.0,0.00025268,7]
[394400524,1763532638441,-192.6,0.00025268,7]
[394400526,1763532638450,-285.435934,0.00025268,7]
[394400528,1763532638460,-285.435934,0.00025268,7]
[394400530,1763532638470,-285.435934,0.00025268,7]
[394400532,1763532638481,-285.435934,0.00025268,7]
[394400534,1763532638491,-1500.0,0.00025268,2]
[394400536,1763532638503,-300.0,0.00025321,2]
[394400538,1763532638513,-1160.0,0.00025463,2]
[394400541,1763532638523,-1000.0,0.000255,2]
[394400543,1763532638533,-53901.88,0.000255,2]
[394400545,1763532638543,-151.0,0.000255,7]
[394400547,1763532638553,-151.0,0.000255,7]
[394400548,1763532638562,-151.0,0.000255,7]
[394400549,1763532638571,-151.0,0.000255,7]
[394400550,1763532638581,-151.0,0.000255,7]
[394400551,1763532638591,-151.0,0.000255,7]
[394400552,1763532638600,-168.756887,0.000255,7]
[394400553,1763532638609,-168.756887,0.000255,7]
[394400554,1763532638618,-168.756887,0.000255,7]
[394400555,1763532638627,-168.756887,0.000255,7]
[394400556,1763532638637,-151.0,0.000255,7]
[394400557,1763532638645,-151.0,0.000255,7]
[394400558,1763532638655,-151.0,0.000255,7]
[394400559,1763532638664,-151.0,0.000255,7]
[394400560,1763532638673,-151.0,0.000255,7]
[394400561,1763532638683,-151.0,0.000255,7]
[394400562,1763532638691,-151.0,0.000255,7]
[394400563,1763532638701,-168.808584,0.000255,7]
[394400564,1763532638710,-164.482002,0.000255,7]
[394400565,1763532638719,-151.0,0.000255,7]
[394400566,1763532638728,-151.0,0.000255,7]
[394400567,1763532638738,-151.0,0.000255,7]
[394400568,1763532638747,-151.0,0.000255,7]
[394400569,1763532638759,-151.0,0.000255,7]
[394400570,1763532638768,-151.0,0.000255,7]
[394400571,1763532638778,-151.0,0.000255,7]
[394400573,1763532638787,-151.0,0.000255,7]
[394400575,1763532638796,-151.0,0.000255,7]
[394400578,1763532638810,-151.0,0.000255,7]
[394400580,1763532638819,-151.0,0.000255,7]
[394400582,1763532638829,-151.0,0.000255,7]
[394400584,1763532638838,-151.0,0.000255,7]
[394400586,1763532638848,-240.381046,0.000255,7]
[394400588,1763532638857,-857.229514,0.000255,7]
[394400590,1763532638867,-857.229514,0.000255,7]
[394400592,1763532638878,-857.229514,0.000255,7]
[394400594,1763532638888,-857.229514,0.000255,7]
[394400596,1763532638898,-151.0,0.000255,7]
[394400598,1763532638908,-151.0,0.000255,7]
[394400600,1763532638918,-151.0,0.000255,7]
[394400602,1763532638928,-151.0,0.000255,7]
[394400604,1763532638938,-151.0,0.000255,7]
[394400606,1763532638948,-151.0,0.000255,7]
[394400608,1763532638958,-206.942255,0.000255,7]
[394400610,1763532638968,-177.99237048,0.000255,7]
[394400612,1763532638978,-206.942255,0.000255,7]
[394400614,1763532638988,-206.942255,0.000255,7]
[394400616,1763532638997,-206.942255,0.000255,7]
[394400618,1763532639009,-151.0,0.000255,7]
[394400620,1763532639019,-151.0,0.000255,7]
[394400622,1763532639029,-162.385731,0.000255,7]
[394400624,1763532639039,-151.991415,0.000255,7]
[394400626,1763532639049,-151.0,0.000255,7]
[394400628,1763532639059,-151.0,0.000255,7]
[394400630,1763532639069,-151.0,0.000255,7]
[394400632,1763532639078,-151.0,0.000255,7]
[394400634,1763532639089,-151.0,0.000255,7]
[394400636,1763532639098,-151.0,0.000255,7]
[394400638,1763532639108,-154.811422,0.000255,7]
[394400640,1763532639118,-151.0,0.000255,7]
[394400642,1763532639127,-151.0,0.000255,7]
[394400644,1763532639137,-151.0,0.000255,7]
[394400646,1763532639146,-151.0,0.000255,7]
[394400648,1763532639156,-151.0,0.000255,7]
[394400650,1763532639167,-151.0,0.000255,7]
[394400652,1763532639180,-151.0,0.000255,7]
[394400654,1763532639191,-151.0,0.000255,7]
[394400656,1763532639200,-151.0,0.000255,7]
[394400658,1763532639210,-151.0,0.000255,7]
[394400660,1763532639222,-151.0,0.000255,7]
[394400663,1763532639231,-895.61969,0.000255,2]
[394400666,1763532639241,-151.0,0.000255,7]
[394400669,1763532639251,-895.61969,0.000255,2]
[394400671,1763532639262,-151.0,0.000255,7]
[394400672,1763532639272,-895.61969,0.000255,2]
[394400675,1763532639281,-151.0,0.000255,7]
[394400677,1763532639291,-895.61969,0.000255,2]
[394400679,1763532639301,-151.0,0.000255,7]
[394400681,1763532639311,-208.263525,0.000255,7]
[394400683,1763532639321,-208.263525,0.000255,7]
[394400685,1763532639330,-208.263525,0.000255,7]
[394400687,1763532639340,-208.263525,0.000255,7]
[394400688,1763532639349,-151.0,0.000255,7]
[394400690,1763532639359,-151.0,0.000255,7]
[394400692,1763532639369,-151.0,0.000255,7]
[394400693,1763532639378,-272.896447,0.000255,7]
[394400695,1763532639388,-159.218276,0.000255,7]
[394400711,1763532639533,-272.896447,0.000255,7]
[394400713,1763532639544,-159.218276,0.000255,7]
[394400715,1763532639553,-272.896447,0.000255,7]
[394400717,1763532639563,-159.218276,0.000255,7]
[394400719,1763532639572,-272.896447,0.000255,7]
[394400721,1763532639581,-159.218276,0.000255,7]
[394400723,1763532639591,-151.0,0.000255,7]
[394400725,1763532639600,-423.067706,0.000255,7]
[394400727,1763532639611,-423.067706,0.000255,7]
[394400729,1763532639619,-423.067706,0.000255,7]
[394400731,1763532639628,-423.067706,0.000255,7]
[394400733,1763532639637,-254.27228,0.000255,7]
[394400735,1763532639646,-254.27228,0.000255,7]
[394400737,1763532639656,-254.27228,0.000255,7]
[394400740,1763532639669,-254.27228,0.000255,7]
[394400741,1763532639678,-151.0,0.000255,7]
[394400743,1763532639687,-151.0,0.000255,7]
[394400745,1763532639696,-457.345415,0.000255,7]
[394400747,1763532639705,-649.944084,0.000255,7]
[394400749,1763532639714,-577.822956,0.000255,7]
[394400751,1763532639723,-151.0,0.000255,7]
[394400753,1763532639733,-649.944084,0.000255,7]
[394400755,1763532639742,-457.345415,0.000255,7]
[394400757,1763532639752,-577.822956,0.000255,7]
[394400758,1763532639761,-816.479289,0.000255,7]
[394400760,1763532639771,-649.944084,0.000255,7]
[394400762,1763532639780,-577.822956,0.000255,7]
[394400764,1763532639789,-457.345415,0.000255,7]
[394400766,1763532639799,-816.479289,0.000255,7]
[394400768,1763532639808,-649.944084,0.000255,7]
[394400770,1763532639817,-577.822956,0.000255,7]
[394400772,1763532639826,-457.345415,0.000255,7]
[394400774,1763532639835,-816.479289,0.000255,7]
[394400776,1763532639845,-816.479289,0.000255,7]
[394400778,1763532639854,-151.0,0.000255,7]
[394400780,1763532639863,-151.0,0.000255,7]
[394400782,1763532639872,-225.683307,0.000255,7]
[394400784,1763532639881,-151.0,0.000255,7]
[394400786,1763532639891,-151.0,0.000255,7]
[394400788,1763532639900,-151.0,0.000255,7]
[394400790,1763532639910,-151.0,0.000255,7]
[394400792,1763532639919,-151.0,0.000255,7]
[394400794,1763532639928,-199.089647,0.000255,7]
[394400796,1763532639937,-199.089647,0.000255,7]
[394400798,1763532639947,-151.0,0.000255,7]
[394400800,1763532639956,-151.0,0.000255,7]
[394400802,1763532639965,-199.089647,0.000255,7]
[394400804,1763532639974,-151.0,0.000255,7]
[394400806,1763532639984,-199.089647,0.000255,7]
[394400808,1763532639993,-407.62518311,0.00025631,2]
[394400810,1763532640006,-500.0,0.00025667,2]
[394400812,1763532640015,-2000.0,0.00025716,2]
[394400814,1763532640024,-2000.0,0.00025716,2]
[394400816,1763532640034,-2000.0,0.00025716,2]
[394400818,1763532640043,-262.82799552,0.00025753,2]
[394400820,1763532640052,-350.0,0.00025753,2]
[394400822,1763532640061,-500.0,0.00025753,2]
[394400824,1763532640071,-194.0,0.00025775,7]
[394400826,1763532640080,-900.0,0.00025816,2]
[394400827,1763532640089,-1487.99960205,0.00025816,2]
[394400829,1763532640098,-151.0,0.00025862,3]